Workbook

Sheet Facility Summary
B2: [Enter Organization Name]
B3: Greenhouse Gas Emissions Tracking Spreadsheet
B4: Facility Summary
B5: Facilities: | C5: 0
B11: Solid Waste Management Organization Summary
B12: All values are in metric tons of CO2-e
B14: Facility | D14: Scope 1 | G14: Scope 2 | J14: Scope 3 | M14: Scope 1+2 | P14: Scope 1+2+3
D15: =SUM(D16:E1048576) -> 0 | G15: =SUM(G16:H1048576) -> 0 | J15: =SUM(J16:K1048576) -> 0 | M15: =SUM(M16:N1048576) -> 0 | P15: =SUM(P16:Q1048576) -> 0

Sheet Year Summary
B2: ='Facility Summary'!$B$2 -> [Enter Organization Name]
B3: Greenhouse Gas Emissions Tracking Spreadsheet
B4: Year Summary
B5: Facilities: | C5: 0
B11: Solid Waste Management Organization Summary
B12: All values are in metric tons of CO2-e
B14: Year | D14: Scope 1 | G14: Scope 2 | J14: Scope 3 | M14: Scope 1+2 | P14: Scope 1+2+3
D15: =SUM(D16:D1048576) -> 0 | G15: =SUM(G16:G1048576) -> 0 | J15: =SUM(J16:J1048576) -> 0 | M15: =SUM(M16:M1048576) -> 0 | P15: =SUM(P16:P1048576) -> 0

Sheet Emission Factors
A1: Factor Entry & Reference | F1: Emission Factor Sources | M1: Assumptions
A2: Greenhouse Gas Emissions Tracking Spreadsheet | F2: 12014 Climate Registry Default Emission Factors in GRP v2.0 | M2: 1. Light vehicles were assumed to have average mpg fuel economy (16.7 mpg) unless otherwise specified in Table 1.8 from http://www.eia.gov/totalenergy/data/monthly/#summary.
A3: Factor Master List | F3: 2http://www.epa.gov/climateleaders/documents/emission-factors.pdf | M3: 2. Heavy vehicles assumed to have average mpg fuel economy (6.2 mpg) unless otherwise specified in Table 1.8 from http://www.eia.gov/totalenergy/data/monthly/#summary.
F4: 3http://epa.gov/fueleconomy/fetrends/1975-2013/420r13011.pdf | M4: 3. Light vehicles with the same model year are assumed to have the same fuel economy regardless of fuel type.
F5: 4http://www.ghgprotocol.org/files/ghgp/tools/co2-mobile.pdf | M5: 4. Heavy vehicles with the same model year are assumed to have the same fuel economy regardless of fuel type.
F6: 5http://www.eia.gov/emeu/mer/pdf/pages/sec1_17.pdf | M6: 5. Passenger vehicles are assumed to have wheelbase less than or equal to 121 inches.
F7: 6http://www.epa.gov/otaq/nonrdmdl.htm#techrept | M7: 6. Light vehicles not specified as passenger cars are assumed to have wheelbase greater than 121 inches.
F8: (superscripts indicate emission data source) | M8: 7. Unit Ratios in this tab are calculated based on average vehicle mpg where applicable. Actual conversion factors used may differ from unit ratios based on vehicle mpg entered by user or specified by model year and weight class.
A9: Global Warming Potentials (GWPs)
A10: Common Name | B10: Formula | C10: GWP
A11: Carbon dioxide | B11: CO2 | C11: 1
A12: Methane | B12: CH4 | C12: 21
A13: Nitrous Oxide | B13: N2O | C13: 310
A14: Source: GRP v2.0, April 2014 Table B.1.
A17: Electricity
A18: Units (Long Name) | B18: Units | C18: Ratio | E18: Emission Factor / eGRID Region | F18: CO2 | G18: CH4 | H18: N2O | I18: eGRID Subregion Name | J18: Map No.
F19: lbs/MWh | G19: lbs/MWh | H19: lbs/MWh | I19: Source
A20: Megawatt-Hours | B20: MWh | C20: 1 | E20: Custom | F20: 1041 | G20: =G35 -> 0.0288 | H20: =H35 -> 0.02779 | I20: See comment | J20: N/A | L20: Map of U.S. eGRID Subregions, 2004 (from GRP v1.1, May 2008)
A21: Kilowatt-Hours | B21: kWh | C21: =1/1000 -> 0.001 | E21: NEWE | F21: 728.41 | G21: =75.68/$C$22 -> 0.07568 | H21: =13.86/$C$22 -> 0.01386 | I21: NPCC New England | J21: 1
A22: Gigawatt-Hours | B22: GWh | C22: 1000 | E22: NYCW | F22: 610.67 | G22: =23.75/$C$22 -> 0.02375 | H22: =2.81/$C$22 -> 0.00281 | I22: NPCC NYC/Westchester | J22: 2
E23: NYLI | F23: 1347.99 | G23: =96.86/$C$22 -> 0.09686 | H23: =12.37/$C$22 -> 0.01237 | I23: NPCC Long Island | J23: 3
E24: NYUP | F24: 497.92 | G24: =15.94/$C$22 -> 0.01594 | H24: =6.77/$C$22 -> 0.00677 | I24: NPCC Upstate NY | J24: 4
E25: RFCE | F25: 947.42 | G25: =26.84/$C$22 -> 0.02684 | H25: =14.96/$C$22 -> 0.01496 | I25: RFC East | J25: 5
E26: SRVC | F26: 1035.87 | G26: =21.15/$C$22 -> 0.02115 | H26: =17.45/$C$22 -> 0.01745 | I26: SERC Virginia/Carolina | J26: 6
E27: SRTV | F27: 1357.71 | G27: =17.28/$C$22 -> 0.01728 | H27: =22.09/$C$22 -> 0.02209 | I27: SERC Tennessee Valley | J27: 7
E28: SRMV | F28: 1002.41 | G28: =19.45/$C$22 -> 0.01945 | H28: =10.65/$C$22 -> 0.01065 | I28: SERC Mississippi Valley | J28: 8
E29: SRSO | F29: 1325.68 | G29: =22.27/$C$22 -> 0.02227 | H29: =20.78/$C$22 -> 0.02078 | I29: SERC South | J29: 9
E30: FRCC | F30: 1176.61 | G30: =39.24/$C$22 -> 0.03924 | H30: =13.53/$C$22 -> 0.01353 | I30: FRCC All | J30: 10
E31: RFCM | F31: 1659.46 | G31: =31.41/$C$22 -> 0.03141 | H31: =27.89/$C$22 -> 0.02789 | I31: RFC Michigan | J31: 11
E32: RFCW | F32: 1520.59 | G32: =18.12/$C$22 -> 0.01812 | H32: =25.13/$C$22 -> 0.02513 | I32: RFC West | J32: 12
E33: MROE | F33: 1591.65 | G33: =23.98/$C$22 -> 0.02398 | H33: =27.04/$C$22 -> 0.02704 | I33: MRO East | J33: 13
E34: SRMW | F34: 1749.75 | G34: =19.57/$C$22 -> 0.01957 | H34: =28.98/$C$22 -> 0.02898 | I34: SERC Midwest | J34: 14
E35: MROW | F35: 1628.6 | G35: =28.8/$C$22 -> 0.0288 | H35: =27.79/$C$22 -> 0.02779 | I35: MRO West | J35: 15
E36: SPNO | F36: 1815.76 | G36: =21.01/$C$22 -> 0.02101 | H36: =28.89/$C$22 -> 0.02889 | I36: SPP North | J36: 16
E37: SPSO | F37: 1599.02 | G37: =23.25/$C$22 -> 0.02325 | H37: =21.79/$C$22 -> 0.02179 | I37: SPP South | J37: 17
E38: ERCT | F38: 1181.73 | G38: =16.7/$C$22 -> 0.0167 | H38: =13.1/$C$22 -> 0.0131 | I38: ERCOT All | J38: 18
E39: RMPA | F39: 1824.51 | G39: =22.25/$C$22 -> 0.02225 | H39: =27.19/$C$22 -> 0.02719 | I39: WECC Rockies | J39: 19
E40: AZNM | F40: 1191.35 | G40: =19.13/$C$22 -> 0.01913 | H40: =15.58/$C$22 -> 0.01558 | I40: WECC Southwest | J40: 20
E41: NWPP | F41: 819.21 | G41: =15.29/$C$22 -> 0.01529 | H41: =12.5/$C$22 -> 0.0125 | I41: WECC Northwest | J41: 21
E42: CAMX | F42: 658.68 | G42: =28.94/$C$22 -> 0.02894 | H42: =6.17/$C$22 -> 0.00617 | I42: WECC California | J42: 22
E43: HIMS | F43: 1351.66 | G43: =72.4/$C$22 -> 0.0724 | H43: =13.8/$C$22 -> 0.0138 | I43: HICC Miscellaneous | J43: 23
E44: HIOA | F44: 1593.35 | G44: =101.74/$C$22 -> 0.10174 | H44: =21.98/$C$22 -> 0.02198 | I44: HICC Oahu | J44: 24
E45: AKMS | F45: 521.26 | G45: =21.78/$C$22 -> 0.02178 | H45: =4.28/$C$22 -> 0.00428 | I45: ASCC Miscellaneous | J45: 25
E46: AKGD | F46: 1280.86 | G46: =27.74/$C$22 -> 0.02774 | H46: =7.69/$C$22 -> 0.00769 | I46: ASCC Alaska Grid | J46: 26
E47: Source: GRP v2.0, April 2014, Table 14.1. (based on eGrid2012 v1.0, 2009 data)
E48: Xcel Energy Data provided by 2013 Corporate Responsibility Report. The North States Power Company, Xcel Operations in MN, ND, WI, etc; has a factor of 1,041 lbs/MWh. Nationwide factor is 1,318 lbs CO2/MWh. Custom factors for CH4 and N2O are from eGRID map region 15. CH4 and N2O converted to lbs/MWh from lbs/GWh based on 1000MWh/GWh
A52: Natural Gas
A53: Units (Long Name) | B53: Units | C53: Ratio | E53: Emission Factor | F53: CO2 | G53: CH4 | H53: N2O | I53: Notes
F54: lbs/scf | G54: lbs/scf | H54: lbs/scf
A55: Cubic foot | B55: cf | C55: 1 | E55: Default | F55: =0.05*2.204 -> 0.1102 | G55: =0.9/453.6*1028/1000000 -> 2.03968254e-06 | H55: =0.9/453.6*1028/1000000 -> 2.03968254e-06
A56: Hundreds of cubic feet | B56: ccf | C56: 100 | E56: Source: GRP v2.0, April 2014, Table 12.1 (CO2) for "Unspecified, Weighted US Average" converted from 0.05 kg/cf to lbs/cf based on 2.204 lbs/kg; and Table 12.5 (CH4, NO2), for "Boilers", converted from 0.9 g/MMBtu to lbs/cf based on 453.6 g/lb and 1028 btu/cf (from Table 12.1).
A57: Millions of cubic feet | B57: mmcf | C57: 1000000
A58: Cubic meters | B58: m3 | C58: =35.3146667 -> 35.3146667
A59: Therms | B59: therms | C59: =100000/1029 -> 97.18172983
A60: Millions of Buts | B60: mmbtu | C60: =1000000/1029 -> 971.8172983
A61: Standard Cubic Foot | B61: scf | C61: 1
A62: Thousand Cubic Feet | B62: mcf | C62: 1000
A65: Liquefied Petroleum Gas, LPG (Engines)
A66: Units (Long Name) | B66: Units | C66: Ratio | E66: Emission Factor | F66: CO2 | G66: CH4 | H66: N2O | I66: Heating Value (MMBtu/Barrel) | K66: Notes
F67: lbs/gal | G67: lbs/gal | H67: lbs/gal
A68: Gallons | B68: Gal | C68: 1 | E68: Default | F68: =5.79*2.204 -> 12.76116 | G68: =0.5/453.6 -> 0.001102292769 | H68: =0.22/453.6 -> 0.0004850088183 | I68: =3.86 -> 3.86
A69: Liters | B69: L | C69: =1/3.78541178 -> 0.2641720526 | E69: Propane | F69: =5.59*2.204 -> 12.32036 | G69: =0.5/453.6 -> 0.001102292769 | H69: =0.22/453.6 -> 0.0004850088183 | I69: 3.82
E70: Ethane | F70: =4.32*2.204 -> 9.52128 | G70: =0.5/453.6 -> 0.001102292769 | H70: =0.22/453.6 -> 0.0004850088183 | I70: 2.9
E71: Isobutane | F71: =6.3*2.204 -> 13.8852 | G71: =0.5/453.6 -> 0.001102292769 | H71: =0.22/453.6 -> 0.0004850088183 | I71: 4.07
E72: nButane | F72: =6.58*2.204 -> 14.50232 | G72: =0.5/453.6 -> 0.001102292769 | H72: =0.22/453.6 -> 0.0004850088183 | I72: 4.24
E73: Source: GRP v2.0, April 2014, Table 13.1 (CO2) for cited petroleum transport fuels (Default = LPG average); all factors converted from their respective kg/gal values to lbs/gal based on 2.204 lbs/kg; and Table 13.7 (CH4, N2O) for "Other Non-Highway," "Other Small Utility (Gasoline)", LPG estimated for all fuel types from (Other Small Utility (Gasoline)) and converted from g/gal to lbs/gal based on 453.6 g/lb. Non-road vehicle factors for LPG fuel were not available. Heating values from Table 13.1.
A78: Liquefied Petroleum Gas, LPG (Boilers), including Propane
A79: Units (Long Name) | B79: Units | C79: Ratio | E79: Emission Factor | F79: CO2 | G79: CH4 | H79: N2O | I79: Heating Value (MMBtu/Barrel) | K79: Notes
F80: lbs/gal | G80: lbs/gal | H80: lbs/gal
A81: Gallons | B81: Gal | C81: 1 | E81: Default | F81: =5.79*2.204 -> 12.76116 | G81: =0.9*$I$81/42/453.6 -> 0.0001825396825 | H81: =4*$I$81/42/453.6 -> 0.000811287478 | I81: =0.092*C83 -> 3.864
A82: Liters | B82: L | C82: =1/3.78541178 -> 0.2641720526 | E82: Propane | F82: =5.74*2.204 -> 12.65096 | G82: =0.9*$I$81/42/453.6 -> 0.0001825396825 | H82: =4*$I$81/42/453.6 -> 0.000811287478 | I82: =0.091*C83 -> 3.822
A83: Barrels | B83: Barrel | C83: =42 -> 42 | E83: Ethane | F83: =4.14*2.204 -> 9.12456 | G83: =0.9*$I$81/42/453.6 -> 0.0001825396825 | H83: =4*$I$81/42/453.6 -> 0.000811287478 | I83: =0.069*C83 -> 2.898
E84: Isobutane | F84: =6.3*2.204 -> 13.8852 | G84: =0.9*$I$81/42/453.6 -> 0.0001825396825 | H84: =4*$I$81/42/453.6 -> 0.000811287478 | I84: =0.097*C83 -> 4.074
E85: nButane | F85: =6.7*2.204 -> 14.7668 | G85: =0.9*$I$81/42/453.6 -> 0.0001825396825 | H85: =4*$I$81/42/453.6 -> 0.000811287478 | I85: =0.101*C83 -> 4.242
E86: Source: GRP v2.0, April 2014, Table 12.1 (CO2) for cited petroleum product (Default = LPG average); all factors converted from their respective kg/gal values to lbs/gal based on 2.204 lbs/kg; and Table 12.7 (CH4, N2O) for "Liquefied Petroleum Gases Boilers), converted from respective g/MMBtu values to lbs/gal based on heating values from Table 12.1, 453.6 grams/lb, and 42 gallons/barrel (barrel conversion factor from GRP 2.0 Appendix C). Heating values from Table 12.1. Boiler values of CH4 and N2O for specific LPG fuels not available so assumed all fuel types have same CH4 and N2O emissions in Boilers as LPG average.
A92: Diesel (Internal Combustion Engines, Non-Highway)
A93: Units (Long Name) | B93: Units | C93: Ratio | E93: Emission Factor | F93: CO2 | G93: CH4 | H93: N2O | I93: Notes
F94: lbs/gal | G94: lbs/gal | H94: lbs/gal
A95: Gallons | B95: Gal | C95: 1 | E95: Default | F95: =10.21*2.204 -> 22.50284 | G95: =0.58/453.6 -> 0.001278659612 | H95: =0.26/453.6 -> 0.0005731922399 | I95: Tier B/C Method
A96: Liters | B96: L | C96: =1/3.78541178 -> 0.2641720526 | E96: Source: GRP v2.0, April 2014, Table 13.1 (CO2) for "Diesel Fuel No 1 and 2" converted from kg/gal to lbs/gal based on 2.204 lbs/kg; and Table 13.7 (CH4, NO2), for "Other Non-Highway", converted from respective g/gal values to lbs/gal based on 453.6 g/lb.
A100: Gasoline (Internal Combustion Engines, Non-Highway)
A101: Units (Long Name) | B101: Units | C101: Ratio | E101: Emission Factor | F101: CO2 | G101: CH4 | H101: N2O | I101: Notes
F102: lbs/gal | G102: lbs/gal | H102: lbs/gal
A103: Gallons | B103: Gal | C103: 1 | E103: Default | F103: =8.78*2.204 -> 19.35112 | G103: =0.5/453.6 -> 0.001102292769 | H103: =0.22/453.6 -> 0.0004850088183 | I103: Tier B/C Method
A104: Liters | B104: L | C104: =1/3.78541178 -> 0.2641720526 | E104: Source: GRP v2.0, April 2014, Table 13.1 (CO2) for "Motor Gasoline" converted from kg/gal to lbs/gal based on 2.204 lbs/kg; and Table 13.7 (CH4, NO2), for "Other Non-Highway", converted from respective g/gal values to lbs/gal based on 453.6 g/lb.
A108: Refrigerants
A109: Units (Long Name) | B109: Units | C109: Ratio | E109: Emission Factor | F109: CO2 | G109: CH4 | H109: N2O | I109: Notes
F110: (unitless) | G110: (unitless) | H110: (unitless)
A111: Pounds | B111: lb | C111: 1 | E111: HFC-23 | F111: 11700 | G111: 0 | H111: 0 | I111: GWP, in CO2-e, unitless (i.e. lb/lb refrigerant)
A112: Grams | B112: g | C112: =1/453.6 -> 0.002204585538 | E112: HFC-32 | F112: 650 | G112: 0 | H112: 0 | I112: GWP, in CO2-e, unitless (i.e. lb/lb refrigerant)
A113: Kilogram | B113: kg | C113: 2.204 | E113: HFC-125 | F113: 2800 | G113: 0 | H113: 0 | I113: GWP, in CO2-e, unitless (i.e. lb/lb refrigerant)
E114: HFC-134a | F114: 1300 | G114: 0 | H114: 0 | I114: GWP, in CO2-e, unitless (i.e. lb/lb refrigerant)
E115: HFC-143a | F115: 3800 | G115: 0 | H115: 0 | I115: GWP, in CO2-e, unitless (i.e. lb/lb refrigerant)
E116: HFC-152a | F116: 140 | G116: 0 | H116: 0 | I116: GWP, in CO2-e, unitless (i.e. lb/lb refrigerant)
E117: HFC-227ea | F117: 2900 | G117: 0 | H117: 0 | I117: GWP, in CO2-e, unitless (i.e. lb/lb refrigerant)
E118: HFC-236fa | F118: 6300 | G118: 0 | H118: 0 | I118: GWP, in CO2-e, unitless (i.e. lb/lb refrigerant)
E119: R-410A | F119: 1725 | G119: 0 | H119: 0 | I119: GWP, in CO2-e, unitless (i.e. lb/lb refrigerant)
E120: PFC-116 | F120: 9200 | G120: 0 | H120: 0 | I120: GWP, in CO2-e, unitless (i.e. lb/lb refrigerant)
E121: PFC-14 | F121: 6500 | G121: 0 | H121: 0 | I121: GWP, in CO2-e, unitless (i.e. lb/lb refrigerant)
E122: PFC-410 | F122: 7000 | G122: 0 | H122: 0 | I122: GWP, in CO2-e, unitless (i.e. lb/lb refrigerant)
E123: Source: GRP v2.0, April 2014, Table B.1 except PFC-410. PFC-410 GWP from http://www.epa.gov/climateleaders/documents/resources/mfgrfg.pdf. Factors are global warming potentials, in terms of CO2 equivalents.
A127: Welding (Acetylene)
A128: Units (Long Name) | B128: Units | C128: Ratio | E128: Emission Factor | F128: CO2 | G128: CH4 | H128: N2O | I128: Notes
F129: lbs/lb | G129: lbs/lb | H129: lbs/lb
A130: Pounds | B130: lb | C130: 1 | E130: Default | F130: =C130*0.1053*2.20462/C132 -> 0.01579227796 | G130: 0 | H130: 0 | I130: Assuming 100% oxidation, no CH4 or N2O
A131: Kilogram | B131: kg | C131: 2.204 | E131: Source: GRP v2.0, April 2014, Table 12.1 and http://www.oregon.gov/osp/SFM/docs/cr2k/cr2k_general/gasconversionchartpublic.pdf ; Converted to lbs/lb based on 14.70 lbs/scf, 0.1053 kg CO2/scf, and 2.20462 lbs/kg
A132: Cubic Feet | B132: cf | C132: =C130*14.7 -> 14.7
A133: Cubic meters | B133: m3 | C133: =C132*35.315 -> 519.1305
A136: Gasoline (Light Trucks), including all Gasoline-Ethanol Blends
A137: Units (Long Name) | B137: Units | C137: Ratio | E137: Emission Factor | F137: CO2 | G137: CH4 | H137: N2O | I137: Notes
F138: lbs/gal | G138: lbs/gal | H138: lbs/gal
A139: Gallons | B139: Gal | C139: 1 | E139: Default | F139: =8.78*2.204 -> 19.35112 | G139: =(0.0178/453.6)*16 -> 0.0006278659612 | H139: =(0.0228/453.6)*16 -> 0.0008042328042 | I139: Tier B/C Method (CO2)
A140: Liters | B140: L | C140: =1/3.78541178 -> 0.2641720526 | E140: Source: GRP v2.0, April 2014, Table 13.1 (CO2) for "Gasoline" converted from kg/gal to lbs/gal based on 2.204 lbs/kg; Table 13.5 (CH4, N2O) calculated based on 0.0178 g/mi and 0.0228 g/mi, respectively, for "Gasoline Light Trucks for Model Year 2002," an average of 16 miles per gallon and 453.6 g/lb.
A145: Diesel (Automobiles)
A146: Units (Long Name) | B146: Units | C146: Ratio | E146: Emission Factor | F146: CO2 | G146: CH4 | H146: N2O | I146: Notes
F147: lbs/gal | G147: lbs/gal | H147: lbs/gal
A148: Gallons | B148: Gal | C148: 1 | E148: Default | F148: =10.21*2.204 -> 22.50284 | G148: =(0.001/453.6)*16 -> 3.527336861e-05 | H148: =(0.0015/453.6)*16 -> 5.291005291e-05 | I148: Tier B/C Method (CO2)
A149: Liters | B149: L | C149: =1/3.78541178 -> 0.2641720526 | E149: Source: GRP v2.0, April 2014, Table 13.1 (CO2) for "Diesel Fuel No 1 and 2" converted from kg/gal to lbs/gal based on 2.204 lbs/kg; Table 13.5 (CH4, N2O) calculated based on 0.0010 g/mi and 0.0015 g/mi, respectively, for "Diesel Light Trucks Model Years 1996-2011", an average of 16 miles per gallon and 453.6 g/lb.
A154: Ethanol, 100% Only (Automobiles)
A155: Units (Long Name) | B155: Units | C155: Ratio | E155: Emission Factor | F155: CO2 | G155: CH4 | H155: N2O | I155: Notes
F156: lbs/gal | G156: lbs/gal | H156: lbs/gal
A157: Gallons | B157: Gal | C157: 1 | E157: Default | F157: =5.75*2.204 -> 12.673 | G157: =(0.055/453.6)*16 -> 0.001940035273 | H157: =(0.067/453.6)*16 -> 0.002363315697 | I157: Tier B/C Method
A158: Liters | B158: L | C158: =1/3.78541178 -> 0.2641720526 | E158: Source: GRP v2.0, April 2014, Table 13.1 (CO2) for "Ethanol (E100)" converted from kg/gal to lbs/gal based on 2.204 lbs/kg; Table 13.6 (CH4, N2O) calculated based on 0.055 g/mi and 0.067 g/mi, respectively, for "Light Duty Vehicles, Ethanol", an average of 16 miles per gallon 453.6 g/lb.
A163: Vehicles (Automobiles, Light Trucks)
A164: Units (Long Name) | B164: Units | C164: Ratio | E164: Emission Factor | F164: CO2 | G164: CH4 | H164: N2O | I164: Notes
F165: lbs/gal | G165: lbs/gal | H165: lbs/gal
A166: Gallons | B166: Gal | C166: 1 | E166: Gasoline | F166: =F139 -> 19.35112 | G166: =G139 -> 0.0006278659612 | H166: =H139 -> 0.0008042328042 | I166: Tier B/C Method
A167: Liters | B167: L | C167: =1/3.78541178 -> 0.2641720526 | E167: Diesel | F167: =F148 -> 22.50284 | G167: =G148 -> 3.527336861e-05 | H167: =H148 -> 5.291005291e-05 | I167: Tier B/C Method
E168: E100 | F168: =F157 -> 12.673 | G168: =G157 -> 0.001940035273 | H168: =H157 -> 0.002363315697 | I168: Tier B/C Method
E169: E85 | F169: =(F$166*0.15 + F$168 *0.85) -> 13.674718 | G169: =(G$166*0.15 + G$168 *0.85) -> 0.001743209877 | H169: =(H$166*0.15 + H$168 *0.85) -> 0.002129453263 | I169: Tier B/C Method
E170: E15 | F170: =(F$166*0.85 + F$168 *0.15) -> 18.349402 | G170: =(G$166*0.85 + G$168 *0.15) -> 0.000824691358 | H170: =(H$166*0.85 + H$168 *0.15) -> 0.001038095238 | I170: Tier B/C Method
E171: E12 | F171: =(F$166*0.88 + F$168 *0.12) -> 18.5497456 | G171: =(G$166*0.88 + G$168 *0.12) -> 0.0007853262787 | H171: =(H$166*0.88 + H$168 *0.12) -> 0.0009913227513 | I171: Tier B/C Method
E172: E10 | F172: =(F$166*0.9 + F$168 *0.1) -> 18.683308 | G172: =(G$166*0.9 + G$168 *0.1) -> 0.0007590828924 | H172: =(H$166*0.9 + H$168 *0.1) -> 0.0009601410935 | I172: Tier B/C Method
E173: E5 | F173: =(F$166*0.95 + F$168 *0.05) -> 19.017214 | G173: =(G$166*0.95 + G$168 *0.05) -> 0.0006934744268 | H173: =(H$166*0.95 + H$168 *0.05) -> 0.0008821869489 | I173: Tier B/C Method
E174: Biodiesel | F174: =9.45*2.204 -> 20.8278 | G174: =(0.055/453.6)*14 -> 0.001697530864 | H174: =(0.067/453.6)*14 -> 0.002067901235 | I174: Tier B/C Method
E177: Source: GRP v2.0, April 2014, Table 13.1 (CO2) converted from kg/gal to lbs/gal based on 2.204 lbs/kg; Table 13.5 (CH4, N2O) for ethanol calculated based on 0.055 g/mi and 0.067 g/mi, respectively, for "Light Duty Vehicles, Ethanol", an average of 14 miles per gallon, 453.6 g/lb. Ethanol blends emissions calculated as weighted average of percent ethanol to percent gasoline.
A181: Composting Factors
A182: Types of Systems | E182: Emission Factor | F182: CO2 | G182: CH4 | H182: N2O | I182: Notes
F183: tCO2e/MT | G183: tCO2e/MT | H183: tCO2e/MT
A184: Turned System - No Cover | F184: 0 | G184: 0.09 | H184: 0.09
A185: Turned System - Covered | F185: 0 | G185: 0.06 | H185: 0.09
A186: Forced Aeration System - No Optional Process Controls | F186: 0 | G186: 0.06 | H186: 0.06
A187: Forced Aeration System - ASP with Synthetic Cover | F187: 0 | G187: 0.03 | H187: 0.06
A188: Forced Aeration System - Positive Aeration | F188: 0 | G188: 0.03 | H188: 0.06
A189: Forced Aeration System - Negative Aeration | F189: 0 | G189: 0.03 | H189: 0.06
E190: Source: Climate Action Reserve Organic Waste Composting Project Protocol Version 1.1, July 2013
A200: Landfill Gas Calculator
B201: Default | C201: User Defined
A202: % CH4 | B202: 0.5 | C202: 0.5
A203: Destruction Efficiency | B203: 0.99 | C203: 0.99
A204: Collection Efficiency | B204: 0.75 | C204: 0.75
A205: Oxidation Factor | B205: 0.1 | C205: 0.1
A206: Unit Conversion (volume to mass) | B206: 19.125 | C206: 19.125
A207: GWP | B207: 21 | C207: 21
A208: Source: Local Government Operations Protocol Version 1.1, May 2010
A215: Compressed Natural Gas Vehicles
A216: Units (Long Name) | B216: Units | C216: Ratio | E216: Emission Factor | F216: Year | G216: CO2 | H216: CH4 | I216: N2O
G217: lbs/scf | H217: g/mile | I217: g/mile
A218: Mile | B218: miles | C218: 1 | E218: 2Compressed Natural Gas (CNG)-light | F218: N/A | G218: =0.0545/2.204 -> 0.0247277677 | H218: 0.737 | I218: 0.05
A219: Cubic foot | B219: scf | C219: =16*7.48 -> 119.68 | E219: 2Compressed Natural Gas (CNG)-heavy | F219: N/A | G219: =0.0545/2.204 -> 0.0247277677 | H219: 1.966 | I219: 0.175
A220: Hundreds of cubic feet | B220: ccf | C220: =C219*100 -> 11968 | E220: Source: 2http://www.epa.gov/climateleaders/documents/emission-factors.pdf
A221: Millions of cubic feet | B221: mmcf | C221: =C219*10^6 -> 119680000
A222: Cubic meters | B222: m3 | C222: =C219*35.3146667 -> 4226.459311
A223: Therms | B223: therms | C223: =C219*100000/1029 -> 11630.70943
A224: Millions of Btus | B224: mmbtu | C224: =C219*1000000/1029 -> 116307.0943
A225: Thousand Cubic Feet | B225: mcf | C225: =C219*1000 -> 119680
A228: Gasoline (Light Trucks)
A229: Units (Long Name) | B229: Units | C229: Ratio | E229: Emission Factor | F229: Year | G229: CO22,3 | H229: CH42 | I229: N2O2
G230: g/mile | H230: g/mile | I230: g/mile
A231: Miles | B231: Miles | C231: 1 | E231: Gasoline Light-duty Trucks (Vans, Pickups, Trucks, SUVs) | F231: 1983 | G231: 504 | H231: 0.1368 | I231: 0.0722
A232: Gallons | B232: Gal | C232: =16 -> 16 | E232: Gasoline Light-duty Trucks (Vans, Pickups, Trucks, SUVs) | F232: 1984 | G232: 512 | H232: 0.1294 | I232: 0.0764
A233: Liters | B233: L | C233: =(16)/3.78541178 -> 4.226752842 | E233: Gasoline Light-duty Trucks (Vans, Pickups, Trucks, SUVs) | F233: 1985 | G233: 509 | H233: 0.122 | I233: 0.0806
E234: Gasoline Light-duty Trucks (Vans, Pickups, Trucks, SUVs) | F234: 1986 | G234: 489 | H234: 0.1146 | I234: 0.0848
E235: Gasoline Light-duty Trucks (Vans, Pickups, Trucks, SUVs) | F235: 1987 | G235: 486 | H235: 0.0813 | I235: 0.1035
E236: Gasoline Light-duty Trucks (Vans, Pickups, Trucks, SUVs) | F236: 1988 | G236: 498 | H236: 0.0813 | I236: 0.1035
E237: Gasoline Light-duty Trucks (Vans, Pickups, Trucks, SUVs) | F237: 1989 | G237: 506 | H237: 0.0813 | I237: 0.1035
E238: Gasoline Light-duty Trucks (Vans, Pickups, Trucks, SUVs) | F238: 1990 | G238: 512 | H238: 0.0813 | I238: 0.1035
E239: Gasoline Light-duty Trucks (Vans, Pickups, Trucks, SUVs) | F239: 1991 | G239: 500 | H239: 0.0813 | I239: 0.1035
E240: Gasoline Light-duty Trucks (Vans, Pickups, Trucks, SUVs) | F240: 1992 | G240: 512 | H240: 0.0813 | I240: 0.1035
E241: Gasoline Light-duty Trucks (Vans, Pickups, Trucks, SUVs) | F241: 1993 | G241: 507 | H241: 0.0813 | I241: 0.1035
E242: Gasoline Light-duty Trucks (Vans, Pickups, Trucks, SUVs) | F242: 1994 | G242: 518 | H242: 0.0646 | I242: 0.0982
E243: Gasoline Light-duty Trucks (Vans, Pickups, Trucks, SUVs) | F243: 1995 | G243: 524 | H243: 0.0517 | I243: 0.0908
E244: Gasoline Light-duty Trucks (Vans, Pickups, Trucks, SUVs) | F244: 1996 | G244: 518 | H244: 0.0452 | I244: 0.0871
E245: Gasoline Light-duty Trucks (Vans, Pickups, Trucks, SUVs) | F245: 1997 | G245: 528 | H245: 0.0452 | I245: 0.0871
E246: Gasoline Light-duty Trucks (Vans, Pickups, Trucks, SUVs) | F246: 1998 | G246: 521 | H246: 0.0391 | I246: 0.0728
E247: Gasoline Light-duty Trucks (Vans, Pickups, Trucks, SUVs) | F247: 1999 | G247: 535 | H247: 0.0321 | I247: 0.0564
E248: Gasoline Light-duty Trucks (Vans, Pickups, Trucks, SUVs) | F248: 2000 | G248: 528 | H248: 0.0346 | I248: 0.0621
E249: Gasoline Light-duty Trucks (Vans, Pickups, Trucks, SUVs) | F249: 2001 | G249: 538 | H249: 0.0151 | I249: 0.0164
E250: Gasoline Light-duty Trucks (Vans, Pickups, Trucks, SUVs) | F250: 2002 | G250: 539 | H250: 0.0178 | I250: 0.0228
E251: Gasoline Light-duty Trucks (Vans, Pickups, Trucks, SUVs) | F251: 2003 | G251: 533 | H251: 0.0155 | I251: 0.0114
E252: Gasoline Light-duty Trucks (Vans, Pickups, Trucks, SUVs) | F252: 2004 | G252: 538 | H252: 0.0152 | I252: 0.0132
E253: Gasoline Light-duty Trucks (Vans, Pickups, Trucks, SUVs) | F253: 2005 | G253: 526 | H253: 0.0157 | I253: 0.0101
E254: Gasoline Light-duty Trucks (Vans, Pickups, Trucks, SUVs) | F254: 2006 | G254: 518 | H254: 0.0159 | I254: 0.0089
E255: Gasoline Light-duty Trucks (Vans, Pickups, Trucks, SUVs) | F255: 2007 | G255: 512 | H255: 0.0161 | I255: 0.0079
E256: Gasoline Light-duty Trucks (Vans, Pickups, Trucks, SUVs) | F256: 2008 | G256: 499 | H256: 0.0163 | I256: 0.0066
E257: Gasoline Light-duty Trucks (Vans, Pickups, Trucks, SUVs) | F257: 2009 | G257: 480 | H257: 0.0163 | I257: 0.0066
E258: Gasoline Light-duty Trucks (Vans, Pickups, Trucks, SUVs) | F258: 2010 | G258: 474 | H258: 0.0163 | I258: 0.0066
E259: Gasoline Light-duty Trucks (Vans, Pickups, Trucks, SUVs) | F259: 2011 | G259: 466 | H259: 0.0163 | I259: 0.0066
E260: Gasoline Light-duty Trucks (Vans, Pickups, Trucks, SUVs) | F260: 2012 | G260: 461 | H260: 0.0163 | I260: 0.0066
E261: Gasoline Light-duty Trucks (Vans, Pickups, Trucks, SUVs) | F261: 2013 | G261: 452 | H261: 0.0163 | I261: 0.0066
... 207 more rows
